fUST/lending_fUST_20260330
["ID","MTS","AMOUNT","RATE_DAILY","PERIOD"]
[419088991,1774859448033,-251.196149,0.00021918,2]
[419088992,1774859448046,-251.196149,0.00021918,2]
[419088993,1774859448058,-251.196149,0.00021918,2]
[419088994,1774859448070,-251.196154,0.00021918,2]
[419088995,1774859448082,-151.0,0.00021918,2]
[419088996,1774859448095,-151.0,0.00021918,2]
[419088997,1774859448107,-288.798826,0.00021918,2]
[419088998,1774859448119,-288.798826,0.00021918,2]
[419088999,1774859448131,-288.798826,0.00021918,2]
[419089000,1774859448142,-288.798826,0.00021918,2]
[419089001,1774859448154,-288.798826,0.00021918,2]
[419089002,1774859448165,-288.798826,0.00021918,2]
[419089003,1774859448177,-288.798826,0.00021918,2]
[419089004,1774859448190,-288.798826,0.00021918,2]
[419089005,1774859448202,-288.798826,0.00021918,2]
[419089006,1774859448214,-288.798826,0.00021918,2]
[419089007,1774859448227,-151.0,0.00021918,2]
[419089008,1774859448238,-288.798826,0.00021918,2]
[419089009,1774859448251,-151.0,0.00021918,2]
[419089010,1774859448262,-288.798826,0.00021918,2]
[419089011,1774859448274,-151.0,0.00021918,2]
[419089012,1774859448286,-288.798826,0.00021918,2]
[419089013,1774859448299,-151.0,0.00021918,2]
[419089014,1774859448311,-288.798826,0.00021918,2]
[419089015,1774859448325,-151.0,0.00021918,2]
[419089016,1774859448336,-288.798826,0.00021918,2]
[419089017,1774859448347,-151.0,0.00021918,2]
[419089018,1774859448357,-288.798826,0.00021918,2]
[419089019,1774859448378,-151.0,0.00021918,2]
[419089020,1774859448390,-288.798826,0.00021918,2]
[419089021,1774859448403,-266.665263,0.00021918,2]
[419089022,1774859448414,-288.798826,0.00021918,2]
[419089023,1774859448424,-288.798826,0.00021918,2]
[419089024,1774859448435,-288.798816,0.00021918,2]
[419089025,1774859448621,-551.436535,0.00021918,2]
[419089026,1774859448634,-551.436535,0.00021918,2]
[419089027,1774859448645,-551.436535,0.00021918,2]
[419089028,1774859448655,-551.436535,0.00021918,2]
[419089029,1774859448666,-551.436535,0.00021918,2]
[419089030,1774859448677,-551.436535,0.00021918,2]
[419089031,1774859448686,-551.436535,0.00021918,2]
[419089032,1774859448697,-551.436535,0.00021918,2]
[419089033,1774859448707,-551.436535,0.00021918,2]
[419089034,1774859448718,-551.436535,0.00021918,2]
[419089035,1774859448728,-551.436535,0.00021918,2]
[419089036,1774859448738,-551.436535,0.00021918,2]
[419089037,1774859448748,-551.436535,0.00021918,2]
[419089038,1774859448758,-551.436535,0.00021918,2]
[419089039,1774859448768,-551.436535,0.00021918,2]
[419089040,1774859448778,-378.23526381,0.00021918,2]
[419089041,1774859448803,-173.20127119,0.00021918,2]
[419089042,1774859448813,-551.436535,0.00021918,2]
[419089043,1774859448823,-551.436535,0.00021918,2]
[419089044,1774859448833,-551.436535,0.00021918,2]
[419089045,1774859448843,-551.436529,0.00021918,2]
[419089046,1774859448854,-151.0,0.00021918,2]
[419089047,1774859448864,-151.0,0.00021918,2]
[419089048,1774859448874,-151.0,0.00021918,2]
[419089049,1774859448884,-151.0,0.00021918,2]
[419089050,1774859448894,-151.0,0.00021918,2]
[419089051,1774859448904,-151.0,0.00021918,2]
[419089052,1774859448913,-151.0,0.00021918,2]
[419089053,1774859448923,-151.0,0.00021918,2]
[419089054,1774859448934,-151.0,0.00021918,2]
[419089055,1774859448944,-151.0,0.00021918,2]
[419089056,1774859448954,-151.0,0.00021918,2]
[419089057,1774859448964,-151.0,0.00021918,2]
[419089058,1774859448975,-151.0,0.00021918,2]
[419089059,1774859448985,-233.569381,0.00021918,2]
[419089060,1774859448995,-151.0,0.00021918,2]
[419089061,1774859449005,-151.0,0.00021918,2]
[419089062,1774859449015,-207.215196,0.00021918,2]
[419089063,1774859449025,-151.0,0.00021918,2]
[419089064,1774859449035,-166.841444,0.00021918,2]
[419089065,1774859449046,-498.819248,0.00021918,2]
[419089066,1774859449056,-498.819248,0.00021918,2]
[419089067,1774859449066,-498.819248,0.00021918,2]
[419089068,1774859449076,-498.819248,0.00021918,2]
[419089069,1774859449086,-498.819248,0.00021918,2]
[419089070,1774859449097,-498.819248,0.00021918,2]
[419089071,1774859449107,-498.819248,0.00021918,2]
[419089072,1774859449117,-498.819248,0.00021918,2]
[419089073,1774859449127,-498.819248,0.00021918,2]
[419089074,1774859449137,-498.819248,0.00021918,2]
[419089075,1774859449148,-498.819248,0.00021918,2]
[419089076,1774859449158,-498.819248,0.00021918,2]
[419089077,1774859449168,-498.819248,0.00021918,2]
[419089078,1774859449179,-498.819248,0.00021918,2]
[419089079,1774859449190,-498.819248,0.00021918,2]
[419089080,1774859449200,-498.819248,0.00021918,2]
[419089081,1774859449211,-498.819248,0.00021918,2]
[419089082,1774859449221,-498.819248,0.00021918,2]
[419089083,1774859449231,-151.0,0.00021918,2]
[419089084,1774859449242,-498.819248,0.00021918,2]
[419089085,1774859449253,-151.0,0.00021918,2]
[419089086,1774859449264,-498.819248,0.00021918,2]
[419089087,1774859449274,-151.0,0.00021918,2]
[419089088,1774859449284,-151.0,0.00021918,2]
[419089089,1774859449294,-151.0,0.00021918,2]
[419089090,1774859449304,-236.269629,0.00021918,2]
[419089091,1774859449314,-151.0,0.00021918,2]
[419089092,1774859449324,-151.0,0.00021918,2]
[419089093,1774859449334,-151.0,0.00021918,2]
[419089094,1774859449343,-151.0,0.00021918,2]
[419089095,1774859449353,-151.0,0.00021918,2]
[419089096,1774859449363,-151.0,0.00021918,2]
[419089097,1774859449373,-151.0,0.00021918,2]
[419089098,1774859449383,-151.0,0.00021918,2]
[419089099,1774859449393,-151.0,0.00021918,2]
[419089100,1774859449403,-301.235423,0.00021918,2]
[419089101,1774859449413,-301.349829,0.00021918,2]
[419089102,1774859449423,-152.519461,0.00021918,2]
[419089103,1774859449433,-152.519461,0.00021918,2]
[419089104,1774859449445,-152.519461,0.00021918,2]
[419089105,1774859449455,-152.519461,0.00021918,2]
[419089106,1774859449465,-152.519461,0.00021918,2]
[419089107,1774859449475,-152.519461,0.00021918,2]
[419089108,1774859449485,-152.519461,0.00021918,2]
[419089109,1774859449495,-152.519461,0.00021918,2]
[419089110,1774859449505,-152.519461,0.00021918,2]
[419089111,1774859449516,-152.519461,0.00021918,2]
[419089112,1774859449526,-152.519461,0.00021918,2]
[419089113,1774859449537,-152.519461,0.00021918,2]
[419089114,1774859449547,-152.519461,0.00021918,2]
[419089115,1774859449557,-152.519461,0.00021918,2]
[419089116,1774859449567,-152.519461,0.00021918,2]
[419089117,1774859449577,-152.519461,0.00021918,2]
[419089118,1774859449589,-152.519461,0.00021918,2]
[419089119,1774859449599,-152.519461,0.00021918,2]
[419089120,1774859449609,-152.519461,0.00021918,2]
[419089121,1774859449618,-152.519466,0.00021918,2]
[419089122,1774859449629,-188.404536,0.00021918,2]
[419089123,1774859449639,-188.404536,0.00021918,2]
[419089124,1774859449650,-188.404536,0.00021918,2]
[419089125,1774859449660,-188.404536,0.00021918,2]
[419089126,1774859449670,-188.404536,0.00021918,2]
[419089127,1774859449680,-188.404536,0.00021918,2]
[419089128,1774859449690,-188.404536,0.00021918,2]
[419089129,1774859449700,-188.404536,0.00021918,2]
[419089130,1774859449710,-188.404536,0.00021918,2]
[419089131,1774859449720,-188.404536,0.00021918,2]
[419089132,1774859449730,-188.404536,0.00021918,2]
[419089133,1774859449741,-188.404536,0.00021918,2]
[419089134,1774859449751,-188.404536,0.00021918,2]
[419089135,1774859449761,-188.404536,0.00021918,2]
[419089136,1774859449771,-188.404536,0.00021918,2]
[419089137,1774859449782,-188.404536,0.00021918,2]
[419089138,1774859449791,-188.404536,0.00021918,2]
[419089139,1774859449802,-188.404536,0.00021918,2]
[419089140,1774859449812,-188.404536,0.00021918,2]
[419089141,1774859449822,-188.404542,0.00021918,2]
[419089142,1774859449831,-1161.88,0.00021918,2]
[419089143,1774859449841,-1161.88,0.00021918,2]
[419089144,1774859449851,-1161.88,0.00021918,2]
[419089145,1774859449861,-1161.88,0.00021918,2]
[419089146,1774859449872,-1161.88,0.00021918,2]
[419089147,1774859449881,-1161.88,0.00021918,2]
[419089148,1774859449892,-1161.88,0.00021918,2]
[419089149,1774859449902,-1161.88,0.00021918,2]
[419089150,1774859449912,-1161.88,0.00021918,2]
[419089151,1774859449922,-1161.88,0.00021918,2]
[419089152,1774859449932,-1161.88,0.00021918,2]
[419089153,1774859449943,-1161.88,0.00021918,2]
[419089154,1774859449954,-1161.88,0.00021918,2]
[419089155,1774859449965,-1857.59,0.00021918,2]
[419089156,1774859449975,-444.05319983,0.00021918,2]
[419089157,1774859449986,-378.13214494,0.00021918,2]
[419089158,1774859449996,-322.3649303,0.00021918,2]
[419089159,1774859450006,-580.25687453,0.00021918,2]
[419089160,1774859450017,-381.68156684,0.00021918,2]
[419089161,1774859450027,-687.02682032,0.00021918,2]
[419089162,1774859450038,-799.2957597,0.00021918,2]
[419089163,1774859450048,-432.15102279,0.00021918,2]
[419089164,1774859450059,-1000.0,0.00021918,2]
[419089165,1774859450068,-1097.06858609,0.00021921,2]
[419089166,1774859450079,-323.83265454,0.00021964,2]
[419089167,1774859450089,-500.0,0.00021973,2]
[419089168,1774859450101,-500.0,0.00021973,2]
[419089169,1774859450111,-500.0,0.00021973,2]
[419089170,1774859450121,-500.0,0.00021973,2]
[419089171,1774859450132,-500.0,0.00021973,2]
[419089172,1774859450143,-500.0,0.00021973,2]
[419089173,1774859450153,-220.0,0.00022,10]
[419089174,1774859450163,-20500.69251875,0.00022,2]
[419089175,1774859450269,-31495.57277566,0.00022,2]
[419089177,1774859533821,-1000.0,0.00013562,2]
[419089195,1774860388195,-2575.21877293,0.00015711,7]
[419089196,1774860388267,-2803.94305421,0.00017496,16]
[419089197,1774860388341,-2940.63921839,0.00019282,24]
[419089198,1774860388411,-3822.0071599,0.000208,5]
[419089199,1774860388480,-445.38,0.00020877,10]
[419089200,1774860388551,-612.11,0.00020877,10]
[419089201,1774860388624,-1266.40228277,0.00021132,7]
[419089202,1774860388691,-974.62699994,0.00021132,7]
[419089203,1774860388755,-805.0,0.00021763,10]
[419089204,1774860388817,-695.0,0.00021763,10]
[419089205,1774860388898,-160.0,0.00022148,120]
[419089206,1774860388968,-444.0,0.00022159,120]
[419089207,1774860389245,-266.0,0.00022159,120]
[419089208,1774860389317,-160.0,0.00022159,120]
[419089209,1774860389387,-170.0,0.00022214,120]
[419089210,1774860389454,-600.0,0.00022244,10]
[419089211,1774860389520,-168.0,0.00022417,120]
[419089212,1774860389587,-169.0,0.00022417,120]
[419089213,1774860389652,-160.0,0.000225,7]
[419089214,1774860389716,-699.0,0.00023005,120]
[419089215,1774860389781,-420.0,0.00023005,120]
[419089216,1774860389854,-252.0,0.00023005,120]
[419089217,1774860389929,-168.0,0.00023005,120]
[419089218,1774860390004,-160.0,0.00023255,120]
[419089219,1774860390079,-444.0,0.00023267,120]
[419089220,1774860390150,-266.0,0.00023267,120]
[419089221,1774860390221,-160.0,0.00023267,120]
[419089222,1774860390295,-170.0,0.00023325,120]
[419089223,1774860390364,-168.0,0.00023538,120]
[419089224,1774860390430,-451.92861686,0.00023767,7]
[419089225,1774860390503,-200.68511893,0.00024,120]
[419089226,1774860390570,-401.12764782,0.00024,60]
[419089227,1774860390643,-720.0,0.00024469,10]
[419089228,1774860390717,-3672.07735177,0.00024637,101]
[419089229,1774860390782,-152.27455058,0.00024657,9]
[419089230,1774860390845,-500.0,0.00024657,9]
[419089231,1774860390913,-500.0,0.00024657,9]
[419089232,1774860390980,-199.03292811,0.00024657,9]
[419089233,1774860391059,-526.86196488,0.00024657,9]
[419089234,1774860391134,-627.1,0.00024657,9]
[419089235,1774860391205,-500.0,0.00024657,9]
[419089236,1774860391276,-500.0,0.00024657,9]
[419089237,1774860391349,-8333.33,0.00024657,9]
[419089238,1774860391424,-178.07939937,0.00024657,9]
[419089239,1774860391500,-500.0,0.00024657,9]
[419089240,1774860391573,-500.0,0.00024657,7]
[419089241,1774860391644,-169.86039295,0.00024657,9]
[419089242,1774860391714,-2775.96,0.00024657,9]
[419089243,1774860391782,-263.31091478,0.00024657,9]
[419089244,1774860391848,-157.54565051,0.00024657,9]
[419089245,1774860391910,-500.0,0.00024657,9]
[419089246,1774860391974,-234.85838443,0.00024657,9]
[419089247,1774860392043,-508.7,0.00024657,9]
[419089248,1774860392109,-524.34747752,0.00024657,9]
[419089249,1774860392173,-168.59361614,0.00024657,9]
[419089250,1774860392242,-500.0,0.00024657,9]
[419089251,1774860392308,-163.75757546,0.00024657,9]
[419089252,1774860392378,-353.50722311,0.00024657,9]
[419089253,1774860392443,-500.0,0.00024657,9]
[419089254,1774860392629,-500.0,0.00024657,9]
[419089255,1774860392688,-500.0,0.00024657,9]
[419089256,1774860392747,-227.79681431,0.00024657,9]
[419089257,1774860392805,-603.08549285,0.00024657,9]
[419089258,1774860392872,-701.0,0.00024657,9]
[419089259,1774860392933,-714.85,0.00024657,9]
[419089260,1774860392995,-500.0,0.00024657,9]
[419089261,1774860393059,-500.0,0.00024657,9]
[419089262,1774860393124,-172.0509582,0.00024657,9]
[419089263,1774860393190,-167.0665631,0.00024657,9]
[419089264,1774860393256,-500.0,0.00024657,9]
[419089265,1774860393322,-219.01029178,0.00024657,9]
[419089266,1774860393390,-343.94028804,0.00024657,9]
[419089267,1774860393459,-159.58611281,0.00024657,9]
[419089268,1774860393523,-500.0,0.00024657,9]
[419089269,1774860393586,-518.38938028,0.00024657,9]
[419089270,1774860393652,-221.11597594,0.00024657,9]
[419089271,1774860393716,-500.0,0.00024657,9]
[419089272,1774860393781,-155.64294843,0.00024657,9]
[419089273,1774860393846,-377.46504356,0.00024657,9]
[419089274,1774860393910,-323.88096636,0.00024657,9]
[419089275,1774860393971,-279.84528129,0.00024657,9]
[419089276,1774860394036,-169.37807712,0.00024657,9]
[419089277,1774860394100,-291.67534755,0.00024657,9]
[419089278,1774860394165,-209.1634564,0.00024657,9]
[419089279,1774860394233,-500.0,0.00024657,9]
[419089280,1774860394297,-500.0,0.00024657,9]
[419089281,1774860394359,-173.55367371,0.00024657,9]
[419089282,1774860394420,-159.98592654,0.00024657,9]
[419089283,1774860394482,-559.78168543,0.00024657,9]
[419089284,1774860394543,-500.0,0.00024657,9]
[419089285,1774860394605,-500.0,0.00024657,9]
[419089286,1774860394664,-610.68923843,0.00024657,9]
[419089287,1774860394723,-410.76634937,0.00024657,9]
[419089288,1774860394784,-500.0,0.00024657,9]
[419089289,1774860394844,-169.10407737,0.00024657,9]
[419089290,1774860394904,-500.0,0.00024657,9]
[419089291,1774860394965,-500.0,0.00024657,9]
[419089292,1774860395027,-410.88643495,0.00024657,9]
[419089293,1774860395090,-166.60468221,0.00024657,9]
[419089294,1774860395148,-500.0,0.00024657,9]
[419089295,1774860395209,-500.0,0.00024657,7]
[419089296,1774860395270,-187.00707276,0.00024657,9]
[419089297,1774860395331,-264.85260208,0.00024657,9]
[419089298,1774860395393,-360.02094257,0.00024657,9]
[419089299,1774860395456,-500.0,0.00024657,9]
[419089300,1774860395519,-400.43607807,0.00024657,9]
[419089301,1774860395580,-536.9627282,0.00024657,9]
[419089302,1774860395644,-225.56281573,0.00024657,9]
[419089303,1774860395704,-155.2482602,0.00024657,9]
[419089304,1774860395765,-398.22263252,0.00024657,9]
[419089305,1774860395827,-443.82631754,0.00024657,9]
[419089306,1774860395891,-3465.73,0.00024657,9]
[419089307,1774860395958,-500.0,0.00024657,9]
[419089308,1774860396025,-599.39636409,0.00024657,9]
[419089309,1774860396093,-5951.73,0.00024657,9]
[419089310,1774860396160,-176.41314545,0.00024657,9]
[419089311,1774860396308,-473.73090408,0.00024657,9]
[419089312,1774860396376,-403.23717838,0.00024657,9]
[419089313,1774860396442,-1035.51,0.00024657,9]
[419089314,1774860396508,-500.0,0.00024657,9]
[419089315,1774860396575,-228.7824205,0.00024657,9]
[419089316,1774860396645,-839.98,0.00024657,9]
[419089317,1774860396714,-164.99656371,0.00024657,9]
[419089318,1774860396779,-356.54559539,0.00024657,9]
[419089319,1774860396845,-500.0,0.00024657,9]
[419089320,1774860396909,-223.92945631,0.00024657,9]
[419089321,1774860396973,-500.0,0.00024657,9]
[419089322,1774860397042,-500.0,0.00024657,9]
[419089323,1774860397108,-232.78103531,0.00024657,9]
[419089324,1774860397173,-323.80698549,0.00024657,9]
[419089325,1774860397239,-377.93673684,0.00024657,9]
[419089326,1774860397304,-500.0,0.00024657,9]
[419089327,1774860397371,-500.0,0.00024657,9]
[419089328,1774860397438,-241.69313417,0.00024657,9]
[419089329,1774860397503,-500.0,0.00024657,9]
[419089330,1774860397569,-291.03675731,0.00024657,9]
[419089331,1774860397636,-500.0,0.00024657,9]
[419089332,1774860397701,-500.0,0.00024657,9]
[419089333,1774860397764,-500.0,0.00024657,9]
[419089334,1774860397829,-500.0,0.00024657,9]
[419089335,1774860397893,-158.56235524,0.00024657,9]
[419089336,1774860397954,-239.05402893,0.00024657,9]
[419089337,1774860398017,-500.0,0.00024657,9]
[419089338,1774860398089,-500.0,0.00024657,9]
[419089339,1774860398155,-2353.56,0.00024657,9]
[419089340,1774860398219,-399.10456008,0.00024657,9]
[419089341,1774860398284,-500.0,0.00024657,9]
[419089342,1774860398348,-500.0,0.00024657,9]
[419089343,1774860398417,-500.0,0.00024657,9]
[419089344,1774860398483,-151.84828704,0.00024657,9]
[419089345,1774860398547,-500.0,0.00024657,9]
[419089346,1774860398613,-500.0,0.00024657,9]
[419089347,1774860398678,-166.6981186,0.00024657,9]
[419089348,1774860398743,-270.35443604,0.00024657,9]
[419089349,1774860398804,-500.0,0.00024657,9]
[419089350,1774860398869,-286.56136311,0.00024657,9]
[419089351,1774860398936,-391.9760303,0.00024657,9]
[419089352,1774860399000,-508.90402964,0.00024657,9]
[419089353,1774860399069,-400.81924861,0.00024657,9]
[419089354,1774860399136,-500.0,0.00024657,9]
[419089355,1774860399205,-245.80136553,0.00024657,9]
[419089356,1774860399275,-500.0,0.00024657,9]
[419089357,1774860399344,-500.0,0.00024657,9]
[419089358,1774860399416,-451.92861686,0.00024771,7]
[419089359,1774860399487,-500.0,0.00024931,9]
[419089360,1774860399556,-500.0,0.00024931,9]
[419089361,1774860399623,-627.1,0.00024931,9]
[419089362,1774860399690,-500.0,0.00024931,9]
[419089363,1774860399756,-500.0,0.00024931,9]
[419089364,1774860399823,-8333.33,0.00024931,9]
[419089365,1774860399886,-500.0,0.00024931,9]
[419089366,1774860399949,-500.0,0.00024931,7]
[419089367,1774860400012,-2775.96,0.00024931,9]
[419089368,1774860400076,-601.51830017,0.00024931,9]
[419089369,1774860400419,-508.7,0.00024931,9]
[419089370,1774860400485,-500.0,0.00024931,9]
[419089371,1774860400551,-500.0,0.00024931,9]
[419089372,1774860400614,-500.0,0.00024931,9]
[419089373,1774860400677,-500.0,0.00024931,9]
[419089374,1774860400742,-701.0,0.00024931,9]
[419089375,1774860400806,-714.85,0.00024931,9]
[419089376,1774860400867,-499.85431097,0.00024931,9]
[419089378,1774860400930,-500.0,0.00024931,9]
[419089379,1774860400998,-568.00989034,0.00024931,9]
[419089380,1774860401061,-500.0,0.00024931,9]
[419089381,1774860401126,-500.0,0.00024931,9]
[419089382,1774860401188,-500.0,0.00024931,9]
[419089383,1774860401251,-500.0,0.00024931,9]
[419089384,1774860401320,-500.0,0.00024931,9]
[419089385,1774860401387,-550.00037195,0.00024931,9]
[419089386,1774860401452,-500.0,0.00024931,9]
[419089387,1774860401517,-500.0,0.00024931,9]
[419089388,1774860401585,-295.6177215,0.00024931,9]
[419089389,1774860401648,-502.0669118,0.00024931,9]
[419089390,1774860401711,-500.0,0.00024931,7]
[419089391,1774860401773,-500.0,0.00024931,9]
[419089392,1774860401924,-3465.73,0.00024931,9]
[419089393,1774860401989,-500.0,0.00024931,9]
[419089394,1774860402056,-5951.73,0.00024931,9]
[419089395,1774860402124,-1035.51,0.00024931,9]
[419089396,1774860402188,-500.0,0.00024931,9]
[419089397,1774860402256,-839.98,0.00024931,9]
[419089398,1774860402325,-500.0,0.00024931,9]
[419089399,1774860402391,-527.44702712,0.00024931,9]
[419089400,1774860402456,-500.0,0.00024931,9]
[419089401,1774860402524,-500.0,0.00024931,9]
[419089402,1774860402588,-500.0,0.00024931,9]
[419089403,1774860402654,-500.0,0.00024931,9]
[419089404,1774860402720,-500.0,0.00024931,9]
[419089405,1774860402782,-251.14508608,0.00024931,9]
[419089406,1774860402843,-500.0,0.00024931,9]
[419089407,1774860402905,-500.0,0.00024931,9]
[419089408,1774860402965,-500.0,0.00024931,9]
[419089409,1774860403038,-500.0,0.00024931,9]
[419089410,1774860403114,-2353.56,0.00024931,9]
[419089411,1774860403189,-500.0,0.00024931,9]
[419089412,1774860403258,-219.69295164,0.00024931,9]
[419089413,1774860403328,-500.0,0.00024931,9]
[419089414,1774860403401,-500.0,0.00024931,9]
[419089415,1774860403471,-549.84375064,0.00024931,9]
[419089416,1774860403541,-166.6981186,0.00024931,9]
[419089417,1774860403612,-200.98685946,0.00024931,9]
[419089418,1774860403681,-353.64481677,0.00024931,9]
[419089419,1774860403751,-500.0,0.00024931,9]
[419089420,1774860403820,-520.72658352,0.00024931,9]
[419089421,1774860403886,-1101.108593,0.0002498,5]
[419089422,1774860403953,-1274.0,0.00025,5]
[419089423,1774860404022,-272.52327259,0.00025,7]
[419089424,1774860404093,-4114.57941173,0.00025,5]
[419089425,1774860404164,-200.47410242,0.00025,120]
[419089426,1774860404234,-1000.0,0.00025,15]
[419089427,1774860404304,-1000.0,0.00025,15]
[419089428,1774860404371,-1000.0,0.00025,15]
[419089429,1774860404444,-1000.0,0.00025,15]
[419089430,1774860404512,-1000.0,0.00025,15]
[419089431,1774860404580,-1000.0,0.00025,15]
[419089432,1774860404647,-1000.0,0.00025,15]
[419089433,1774860404716,-1000.0,0.00025,15]
[419089434,1774860404782,-1000.0,0.00025,15]
[419089435,1774860404846,-1000.0,0.00025,15]
[419089436,1774860404911,-1000.0,0.00025,15]
[419089437,1774860404975,-1000.0,0.00025,15]
[419089438,1774860405040,-260.0,0.00025,12]
[419089439,1774860405109,-3113.48,0.00025,30]
[419089440,1774860405176,-1000.0,0.00025,5]
[419089441,1774860405243,-451.92861686,0.00025099,7]
[419089442,1774860405307,-451.92861686,0.00025099,7]
[419089443,1774860405375,-586.08787657,0.000252,5]
[419089444,1774860405441,-500.0,0.00025205,9]
[419089445,1774860405506,-215.17001582,0.00025205,9]
[419089446,1774860405571,-627.1,0.00025205,9]
[419089447,1774860405637,-493.52799921,0.00025205,9]
[419089448,1774860405703,-500.0,0.00025205,9]
[419089449,1774860405766,-8333.33,0.00025205,9]
[419089450,1774860405832,-500.0,0.00025205,9]
[419089451,1774860405894,-500.0,0.00025205,7]
[419089452,1774860405961,-2775.96,0.00025205,9]
[419089453,1774860406025,-508.7,0.00025205,9]
[419089454,1774860406092,-500.0,0.00025205,9]
[419089455,1774860406162,-500.0,0.00025205,9]
[419089456,1774860406231,-500.0,0.00025205,9]
[419089457,1774860406299,-500.0,0.00025205,9]
[419089458,1774860406371,-701.0,0.00025205,9]
[419089459,1774860406443,-714.85,0.00025205,9]
[419089460,1774860406514,-500.0,0.00025205,9]
[419089461,1774860406583,-500.0,0.00025205,9]
[419089462,1774860406653,-294.59361151,0.00025205,9]
[419089463,1774860406722,-500.0,0.00025205,9]
[419089464,1774860406795,-500.0,0.00025205,9]
[419089465,1774860406869,-500.0,0.00025205,9]
[419089466,1774860406938,-500.0,0.00025205,9]
[419089467,1774860407005,-500.0,0.00025205,9]
[419089468,1774860407077,-500.0,0.00025205,7]
[419089469,1774860407151,-500.0,0.00025205,9]
[419089470,1774860407224,-3465.73,0.00025205,9]
[419089471,1774860407299,-500.0,0.00025205,9]
[419089472,1774860407372,-5951.73,0.00025205,9]
[419089473,1774860407448,-1035.51,0.00025205,9]
[419089474,1774860407525,-500.0,0.00025205,9]
[419089475,1774860407596,-839.98,0.00025205,9]
[419089476,1774860407670,-500.0,0.00025205,9]
[419089477,1774860407743,-500.0,0.00025205,9]
[419089478,1774860407815,-500.0,0.00025205,9]
[419089479,1774860407885,-500.0,0.00025205,9]
[419089480,1774860407955,-500.0,0.00025205,9]
[419089481,1774860408024,-500.0,0.00025205,9]
[419089482,1774860408096,-500.0,0.00025205,9]
[419089483,1774860408165,-500.0,0.00025205,9]
[419089484,1774860408342,-500.0,0.00025205,9]
[419089485,1774860408412,-221.72621734,0.00025205,9]
[419089486,1774860408484,-2353.56,0.00025205,9]
[419089487,1774860408553,-196.0594328,0.00025205,9]
[419089488,1774860408623,-500.0,0.00025205,9]
[419089489,1774860408690,-500.0,0.00025205,9]
[419089490,1774860408757,-166.6981186,0.00025205,9]
[419089491,1774860408825,-500.0,0.00025205,9]
[419089492,1774860408894,-270.83333333,0.000253,7]
[419089493,1774860408961,-166.69811862,0.00025479,9]
[419089494,1774860409032,-500.0,0.00025479,9]
[419089495,1774860409102,-627.1,0.00025479,9]
[419089496,1774860409171,-500.0,0.00025479,9]
[419089497,1774860409242,-8333.33,0.00025479,9]
[419089498,1774860409314,-500.0,0.00025479,9]
[419089499,1774860409390,-500.0,0.00025479,7]
[419089500,1774860409463,-2775.96,0.00025479,9]
[419089501,1774860409535,-508.7,0.00025479,9]
[419089502,1774860409607,-415.06631143,0.00025479,9]
[419089503,1774860409677,-233.81349511,0.00025479,9]
[419089504,1774860409747,-500.0,0.00025479,9]
[419089505,1774860409817,-519.96651614,0.00025479,9]
[419089506,1774860409886,-701.0,0.00025479,9]
[419089507,1774860409954,-714.85,0.00025479,9]
[419089508,1774860410019,-500.0,0.00025479,9]
[419089509,1774860410086,-500.0,0.00025479,9]